{"text_format":"3","workbook":"xlsx","n_sheets":32,"sheets":["اسم الجمعية","(1-أ) بيانات المكاتب","(2-أ) بيانات اللجان الدائمة","(2-ب) بيانات الجمعية العمومية","(2-ج) بيانات أعضاء مجلس الإدارة","(2-د) بيانات محاسبي الجمعية","(2-هـ) بيانات باحثي الجمعية","(2-وـ) بيانات العاملين بالجمعية","(3-أ)استثناء اجتماع العمومية","(3-ب) العمومية غير العادية","(3-ج) اجتماعات اللجان الدائمة","ورقة14","(3-د) اجتماعات مجلس الإدارة","ورقة15","(3-هـ) استثناءات مجلس الإدارة","(3-وـ)تفويض اختصاصات المجلس","(3-ز) التحول في الأصول","ورقة12","ورقة13","(3-ح) التحول في الأصول","(3-ط) السجلات الإدارية","(3-ي) السجلات المالية","(3-ك) المخولون بالسحب","(3-ل) العلاقات داخل الجمعية","(3-م) العلاقات مع الداعمين","(3-ن) الجهات المتعاقد معها ","(3-ص)  مبالغ أعضاء المجلس ","التبرعات والإيرادات (4-أ)","المصروفات (٤-ب)","(5-أ) توصيف البرامج","(5-ب) بيانات البرامج","(5-ج) بيانات المساعدات"],"read":"whole","date_system":"1900"}

{"sheet":"اسم الجمعية","index":0,"n_rows":16,"n_cols":2,"rows_kept":16}
{"$rows_empty":8}
[null,"اسم الجمعية"]
[null,"جدة "]
[null,"حي الربوه "]
[null,"شارع عبداللطيف البغدادي"]
[null,"رقم المبنى 3943"]
[null,"جدة 23446-6823"]
[null,1226520300]
[null,"info@himayah-jd.org"]

{"sheet":"(1-أ) بيانات المكاتب","index":1,"n_rows":3,"n_cols":5,"rows_kept":3}
["Column1","Column2","Column3","Column4","Column5"]
["اسم المكتب","الموقع الجغرافي","الإحداثيات","بيانات التواصل (الهاتف/الجوال)","اسم مسؤول المكتب"]
["لا يوجد مكتب فقط المقر الرئيسي للجمعية "]

{"sheet":"(2-أ) بيانات اللجان الدائمة","index":2,"n_rows":7,"n_cols":5,"rows_kept":7}
["Column1","Column2","Column3","Column4","Column5"]
["أســـــــم الـلـجـنـــة","عدد أعضائها","اختصاصها","عدد اجتماعاتها","كيفية تشغيلها"]
["اللجنة الادارية والمالية ",2,"الادارة والمالية",4]
["لجنة العلاقات العامة والاعلام",2,"العلاقات العامة",4]
["اللجنة الاجتماعية ",2,"التاهيل والتدريب",5]
["لجنة تنمية الموارد المالية ",2,"تنمية الموارد",5]
["لجنة التطوع ",2,"استقطاب المتطوعين ",5]

{"sheet":"(2-ب) بيانات الجمعية العمومية","index":3,"n_rows":41,"n_cols":7,"rows_kept":41}
["Column1","Column2","Column3","Column4","Column5","Column6","Column7"]
["اسم  العضو ","رقم الهوية","المهنة","تاريخ الالتحاق","رقم الهاتف","رقم الجوال","الانتظام في دفع الاشتراكات\n(منتظم/غير منتظم/ لا يوجد سجل اشتراكات محدث)\n"]
["ايهاب ابراهيم محمود قاري",{"v":1000161586,"d":"1000161586.00"},"مؤسس شركة رونق","2019-08-19",null,{"v":504406449,"d":"504406449.00"},"منتظم"]
["آمنة علي محمد بشير المدني",{"v":1062788888,"d":"1062788888.00"},"استشاري أطفال, أمراض الجهاز الهضمي والكبد","2014-09-04",null,{"v":505671450,"d":"505671450.00"},"منتظم"]
["امال عبده محمود دهب",{"v":1084453008,"d":"1084453008.00"},"استشارية نساء وولادة","2018-06-24",null,{"v":532536699,"d":"532536699.00"},"منتظم"]
["حنان محمد مقبول إبراهيم",{"v":1028076428,"d":"1028076428.00"},"اخصائية اجتماعية","2016-09-01",null,{"v":545902258,"d":"545902258.00"},"منتظم"]
["حمد عبدالله عثمان خنين ",{"v":1034615920,"d":"1034615920.00"},"مستشار شرعي ومحامي","2016-09-04",null,{"v":505262473,"d":"505262473.00"},"منتظم"]
["سناء علي عبدالله زارع",{"v":1037624770,"d":"1037624770.00"},"أستاذ مساعد في قسم الرياضيات","2013-02-14",null,{"v":505115585,"d":"505115585.00"},"منتظم"]
["سعد عمر صادق الخطيب",{"v":1050393477,"d":"1050393477.00"},"  طبيب نفسي","2013-02-14",null,{"v":504595509,"d":"504595509.00"},"منتظم"]
["سوسن عبدالله المارديني",{"v":1042107621,"d":"1042107621.00"},"ربة منزل ","2012-02-22",null,{"v":506647147,"d":"506647147.00"},"منتظم"]
["سميرة خالد حسن الغامدي",{"v":1015689340,"d":"1015689340.00"},"اخصائية اكلينيكية ","2012-04-17",null,{"v":5556567,"d":"5556567.00"},"منتظم"]
["سعود حامد إسماعيل الزهراني",{"v":1006390916,"d":"1006390916.00"},"دكتور ورئيس قسم الوقاية من الديسكات المعدية","2019-07-25",null,{"v":505379090,"d":"505379090.00"},"منتظم"]
["فاطمة محمد حنش الشهري",{"v":1030577009,"d":"1030577009.00"},"مشرفة في إدارة التوجيه والإرشاد","2016-09-27",null,{"v":503569400,"d":"503569400.00"},"منتظم"]
["علوية احمد عبود الشاطري",{"v":1007069550,"d":"1007069550.00"},"استشاري اطفال عام","2016-09-28",null,{"v":505355903,"d":"505355903.00"},"منتظم"]
["وجدان صالح الحبشي",{"v":1011307665,"d":"1011307665.00"},"اخصائي جودة","2011-12-16",null,{"v":556624488,"d":"556624488.00"},"منتظم"]
["منيرة سالم حمود الجلهمي",{"v":1033608454,"d":"1033608454.00"},"اخصائية اجتماعية","2020-10-08",null,{"v":556677304,"d":"556677304.00"},"منتظم"]
["مروان محمود محمد سني",{"v":1031648882,"d":"1031648882.00"},"مستشار اداري","2016-09-24",null,{"v":553558420,"d":"553558420.00"},"منتظم"]
["نسرين خالد عارف البزره",{"v":1119843884,"d":"1119843884.00"},"استشارية نساء وولادة","2014-02-15",null,505580624,"منتظم"]
["فاطمة خالد حسين الرفاعي",{"v":1018241347,"d":"1018241347.00"},"اخصائية نفسية بمستشفى الصحة النفسية ","2013-03-13",null,505629413,"منتظم"]
["خلود محمد خميس",{"v":1043979044,"d":"1043979044.00"},"استشاري طوارئ أطفال ","2021-12-29",null,{"v":504392851,"d":"504392851.00"},"منتظم"]
["حنان عبدالكريم ادام الصومالي ",{"v":1009979020,"d":"1009979020.00"},"اخصائي اجتماعي ","2018-06-25",null,{"v":543339815,"d":"543339815.00"},"منتظم"]
["ماجد  محمد حسين قاروب",{"v":1063351579,"d":"1063351579.00"},"محامي ومستشار قانوني ","2016-09-26",null,{"v":505669174,"d":"505669174.00"},"منتظم"]
["سالم بن عبدالله الطويرقي",{"v":1002951315,"d":"1002951315.00"},"مدير إدارة التوجيه والإرشاد سابقا","2021-01-02",null,{"v":505617218,"d":"505617218.00"},"منتظم"]
["رائد العبدالرحمن السليمان ",1067026961,"مستشار ","2024-01-07",null,55525122,"منتظم"]
["سلطان علي جميل مغربي ",1034349108,"فني تمريض ","2024-02-12",null,506706266,"منتظم"]
["فؤاد امين رجب بوقري ",1006479925,"طبيب ","2024-03-05",null,505620960,"منتظم"]
["روضة سعد سعادة الجرف ",1012596878,"رئيسة المجلس التنسيقي للمؤسسات الخيرية  ","18/1/1440",null,504602703,"منتظم"]
["محمد حسان عبدالله خفاجي ",10331817755,"لواء متقاعد ","2024-05-14",null,505606400,"منتظم"]
["زهرة سعد سعد المعبي ",1022842643,"دكتورة ومدربة معتمدة   ","2024-12-31",null,505616688,"منتظم"]
["نجاح احمد علي دغريري ",1056085234," خريجة علاقات عامة ","2024-01-14",null,507853108,"منتظم"]
[null,null," "]
[null,null," "]
[null,null," "]
[null,null," "]
[null,null," "]
[null,null," "]
[null,null," "]
[null,null," "]
[null,null," "]
[null,null," "]
[null,null," "]

{"sheet":"(2-ج) بيانات أعضاء مجلس الإدارة","index":4,"n_rows":9,"n_cols":16,"rows_kept":9}
["Column1","Column2","Column3","Column4","Column5","Column6","Column7","Column8","Column9","Column10","Column11","Column12","Column13","Column14","Column15","Column16"]
["الاسم","رقم الهوية","المهنة","الوظيفة بالمجلس","المؤهل","مدة الخدمة بالمجلس","تاريخ الالتحاق","المكافأة إن وجدت","البريد الالكتروني","رقم الهاتف","رقم الجوال","العنوان","هل العضو مقيم في منطقة المقر الرئيس\n(نعم/لا)","طريقة الالتحاق\n(انتخاب/تعيين من الوزارة)","في حالة كون الالتحاق بالتعيين من الوزارة يرجى بيان السبب","العضو  مستقل (نعم/لا/لا يمكن التحقق)\nراجع تفسير الاستقلالية في الدليل الاسترشادي لتعبئة النموذج الوطني"]
["سميرة خالد الغامدي",1015689340,"اخصائي نفسي ","رئيس مجلس الإدارة ","بكالوريوس علم نفس","4 سنوات","27/4/1441",null,"samira.k.alghamdi@gmail.com",null,555656757,"ابحر الجنوبيه","نعم","انتخاب",null,"مستقل"]
["وجدان صالح الحبشي",1011307665,"اخصائي جودة","المشرف المالي","بكالوريوس إحصاء","8 سنوات ","27/4/1441",null,"joojo@windowslive.com",null,556624488,"حي السنابل ","نعم","انتخاب",null,"مستقل"]
["ماجد محمد قاروب ",1063351579,"محامي ومستشار قانوني "," نائب رئيس مجلس الإدارة ","بكالوريوس قانون","شهر ","2023-10-23"," ","majed@lawgaroub.com",null,505669174,"حي النهضة "," ","انتخاب",null,"مستقل"]
["مروان محمود سني",1031648882,"مستشار اداري","عضو مجلس إدارة ","بكالورويس اقتصاد وإدارة ","4 سنوات","27/4/1441",null,"marwansounni@gmail.com",null,553558420,"ذهبان","نعم","انتخاب",null,"مستقل"]
["حنان عبدالكريم الصومالي  ",1009979020,"اخصائي اجتماعي ","عضو مجلس إدارة ","بكالوريوس علم اجتماع ","شهر "," 23/10/2023"," ","Hananabdulkarim81@gmail.com",null,543339815,"حي الزهراء "," ","انتخاب",null,"مستقل"]
["حنان محمد مقبول إبراهيم",1028076428,"اخصائي نفسي ","عضو مجلس إدارة ","بكالوريوس علم اجتماع","4 سنوات ","27/4/1441",null,"soc7anno@gmail.com",null,545902258,"حي السنابل ","نعم","انتخاب",null,"مستقل"]
["سالم بن عبدالله الطويرقي",1002951315,"مدير إدارة التوجيه والإرشاد سابقا","عضو مجلس إدارة ","ماجستير ارشاد نفسي ","شهر "," 23/10/2023",null,"twerqi@hotmail.com ",null,505617218,"حي الصفا 3","نعم","انتخاب",null,"مستقل"]

{"sheet":"(2-د) بيانات محاسبي الجمعية","index":5,"n_rows":13,"n_cols":13,"rows_kept":13}
["Column1","Column2","Column3","Column4","Column5","Column6","Column7","Column8","Column9","Column10","Column11","Column12","Column13"]
["الاسم","رقم الهوية","الجنسية","المؤهل في مجال المحاسبة","الدوام  \n(كلي/جزئي)","وساعات العمل الأسبوعية هي ","الراتب الشهري","الجهة التي تتحمل الراتب","نسبة مساهمة الوزارة في الراتب إن وجدت ","مدة سنوات خدمته بالجمعية","إجمالي سنوات الخبرة في مجال المحاسبة ","مسجل بالتأمينات\n(نعم/لا)","هل هناك موافقة من الوزارة على تعيين المحاسب\n(نعم/لا)"]
["هنادي مازن السقاف ",1072015215,"سعودية","بكالوريوس","كلي",40,14456,"الجمعية",{"v":0,"d":"0%"},13,13,"نعم","نعم"]
{"$rows_empty":8}
[{"$nulls":6},{"$f":"A11:G12","v":"#REF!"}]
[{"$nulls":9},{"$f":"+L12:NJ13","v":{"$error":"#VALUE!"}}]

{"sheet":"(2-هـ) بيانات باحثي الجمعية","index":6,"n_rows":5,"n_cols":12,"rows_kept":5}
["Column1","Column2","Column3","Column4","Column5","Column6","Column7","Column8","Column9","Column10","Column11","Column12"]
["الاسم","رقم الهوية","الجنسية","المؤهل","الدوام  \n(كلي/جزئي)","وساعات العمل الأسبوعية هي ","الراتب الشهري","الجهة التي تتحمل الراتب","نسبة مساهمة الوزارة في الراتب إن وجدت ","مدة سنوات خدمته بالجمعية","إجمالي سنوات الخبرة في مجال البحث الاجتماعي ","مسجل بالتأمينات\n(نعم/لا)"]
[]
["الهام ياسين كاشف",1002709739,"سعودية","بكالوريوس","كلي",40,11028,"الجمعية",{"v":0,"d":"0%"},"14 سنة",14,"نعم"]
["عائشة ابراهيم هتان",1005216625,"سعودية","بكالوريوس","كلي",40,11028,"الجمعية ",{"v":0,"d":"0%"},14,14,"نعم"]

{"sheet":"(2-وـ) بيانات العاملين بالجمعية","index":7,"n_rows":26,"n_cols":11,"rows_kept":26}
["Column1","Column2","Column3","Column4","Column5","Column6","Column7","Column8","Column9","Column10","Column11"]
["الاسم","رقم الهوية","الجنسية","المؤهل","نوع العمل","الدوام  \n(كلي/جزئي)","ساعات العمل الأسبوعية","الراتب الشهري","الجهة التي تتحمل الراتب","مدة سنوات خدمته بالجمعية","مسجل بالتأمينات\n(نعم/لا)"]
["ايمان مبارك الحربي",1030619330,"سعودية ","بكالوريوس","صباحي","كلي",40,21620,"الجمعية ",17,"نعم"]
["نسرين عبد الحميد كاتب",1001562873,"سعودية ","بكالوريوس","صباحي","كلي",40,15223,"الجمعية",13,"نعم"]
["هنادي مازن السقاف",1072015215,"سعودية ","بكالوريوس","صباحي","كلي",40,15956,"الجمعية",10,"نعم"]
["هدى غازي الجعيد",1081474106,"سعودية ","بكالوريوس","صباحي","كلي",40,6493,"الجمعية ",4,"نعم"]
["الهام ياسين كاشف",1002709739,"سعودية ","بكالوريوس","صباحي","كلي",40,11028,"الجمعية ",13,"نعم"]
["عائشة ابراهيم هتان",1005216625,"سعودية ","بكالوريوس","صباحي","كلي",40,11028,"الجمعية ",13,"نعم"]
["نوف عابد عيد الخميسي",1111954507,"سعودية ","بكالوريوس","صباحي","كلي",40,4675,"الجمعية ",3,"نعم"]
["أمواج جبران جعران",1086599675,"سعودية ","بكالوريوس","صباحي","كلي",40,6961,"الجمعية",4,"نعم"]
["ندى علي عبدالله الغامدي",1052519004,"سعودية ","بكالوريوس","صباحي","كلي",40,7883,"الجمعية ",4,"نعم"]
["منال إبراهيم أمان خير الله سعيد",1037553862,"سعودية ","ثانوي ","صباحي/مسائي","كلي",40,5560,"الجمعية ",3,"نعم"]
["ابتسام معيض إبراهيم الغامدي",1069111308,"سعودية ","بكالوريوس","صباحي","كلي",40,8440,"الجمعية ",3,"نعم"]
["سميرة سهيل أحمد المولد",1056443243,"سعودية ","ثانوي ","صباحي","كلي",40,5860,"الجمعية",2,"نعم"]
["غدي طارق بريكان المخيلدي",1110437801,"سعودية ","بكالوريوس","صباحي","كلي",40,5792,"الجمعية",2,"نعم"]
["حنان عابد عبيد الجدعاني ",1009238096,"سعودية ","ثانوي ","صباحي/مسائي","كلي",40,5150,"الجمعية ",2,"نعم"]
["غصون فايز ثواب البيشي",1063231920,"سعودية ","ثانوي ","صباحي","كلي",40,5650,"الجمعية ",2,"نعم"]
["جملة عايدالراشد ",1075901439,"سعودية ","بكالوريوس","صباحي","كلي",40,9440,"الجمعية ",1,"نعم"]
["اسماء احمد محمد آل سعيد القرني",1070570807,"سعودية ","ثانوي ","صباحي/مسائي","كلي",40,5150,"الجمعية ",2,"نعم"]
["شاره بنت محمد بن سليم الحلوي",1032021824,"سعودية ","بكالوريوس","صباحي/مسائي","كلي",40,5150,"الجمعية ",1,"نعم"]
["عائشه  عبدالعزيز ناصر الختيلي",1058337310,"سعودية ","ثانوي ","صباحي/مسائي","كلي",40,5360,"الجمعية ",2,"نعم"]
["حليمه هزاع علي القرني ",1017526425,"سعودية ","ثانوي ","صباحي/مسائي","كلي",40,5350,"الجمعية ",2,"نعم"]
["هنادي زايد مسعف الثقفي ",1070899719,"سعودية ","ثانوي ","صباحي/مسائي","كلي",40,5150,"الجمعية ",1,"نعم"]
["غاده بنت عبدالله بن حسن العلي ",1062273071,"سعودية ","ثانوي ","صباحي/مسائي","كلي",40,5150,"الجمعية ",1,"نعم"]
["رائدة  بليهد العتيبي",1044164711,"سعودية ","بكالوريوس","صباحي","كلي",40,5325,"الجمعية",1,"نعم"]
["منال فرج هزاع الروقي",1072679341,"سعودية ","ثانوي ","صباحي/مسائي","كلي",40,4850,"الجمعية ",1,"نعم"]

{"sheet":"(3-أ)استثناء اجتماع العمومية","index":8,"n_rows":2,"n_cols":3,"rows_kept":2}
["Column1","Column2","Column3"]
["اسم العضو","السبب","ملاحظات"]

{"sheet":"(3-ب) العمومية غير العادية","index":9,"n_rows":2,"n_cols":7,"rows_kept":2}
["رقم الاجتماع","تاريخه","عدد الحاضرين","الجهة الطالبة \n(   )الوزارة، \n(   ) مجلس الإدارة، 25\n(   ) 25٪ من الجمعية العمومية","سبب الاجتماع","تم إرفاق المحضر\n(نعم/لا)","ملاحظات"]
[1,"2024-01-22",23,"مجلس الإدارة ","التعديل على اللائحة الأساسية ( أنواع العضوية -)","نعم "]

{"sheet":"(3-ج) اجتماعات اللجان الدائمة","index":10,"n_rows":32,"n_cols":11,"rows_kept":32,"merged":[[0,0,0,4]]}
["يرجى الاسترشاد بمثال التعبئة المذكور بالأسفل لترتيب إدخال بيانات اجتماعات اللجان",{"$nulls":5},"يرجى الاسترشاد بمثال التعبئة المذكور بالأسفل لترتيب إدخال بيانات اجتماعات اللجان"]
["Column1","Column2","Column3","Column4","Column5","Column6","Column1","Column2","Column3","Column4","Column5"]
["اللجنة","رقم الاجتماع","تاريخه","أهم القرارات","تم إرفاق المحضر\n(نعم/لا)"]
["الإدارية والمالية 1",null,"2024-06-02","مناقشه مشروع المناقصه لاسناد دور الايواء من الوزارة – الاطلاع على تقارير البرامج والانشطه النصف سنويه- الاطرع على التقرير المالي الربعي ","نعم"]
[null,null,"2024-07-02","متابعه عقد المقاولات لمشروع بيت الحرام بمكه- التعاقد مع المكتب الاستشاري الهندسي لاقامه المشروع","نعم"]
[null,null,"2024-07-10","متابعه عقد المكتب الهندسي لمشروع البلد الحرام ","نعم"]
[null,null,"2024-12-12","مناقشة الاستثمار بالجمعية ووضع التوصيات حول الفرص ذات الأعلى عائد بالبنوك المحلية ","نعم"]
[]
["لجنة العلاقات العامه",1,"2024-02-02","طرح برامج التمكين الحرفية للمستفيدات – مناقشة أسباب فتح ملفات الحالات- اعتماد الحالات ","نعم"]
[null,2,"2024-05-02","مناقشه إدارة الحاله بين القسم النفسي والقانوني- مناقشة طرح الدورات التثقيفيه للحالات- اعتماد الحالات الجديدة- ","نعم"]
[null,3,"2024-06-27","مناقشة إجراءات البحث الاجتماعي – تحديث إجراءات فتح الملف للحاله","نعم"]
[null,4,"2024-09-19","تطوير قاعدة بيانات اللجنه- تعديل وتطوير الخطه الخاصة بالسجون- عرض احتياج التطوع للقسم ","نعم"]
[null,null,"2024-11-02","تطوير قاعدة بيانات اللجنه- تعديل وتطوير الخطه الخاصة بالسجون- عرض احتياج التطوع للقسم ","نعم"]
[]
["اللجنة الاجتماعية والنفسية ",1,"2024-01-23","مراجعه المبادرات التطوعية السابقة / استحداث خطه للتطوع- موائمة اهداف الجمعية مع الرؤيا ","نعم"]
[null,2,"2024-05-19","تفعيل خطه العمل التطوعي – تحديد الاحتياج للاقتسام ","نعم"]
[null,3,"2024-06-27","تقسيم الفرق التطوعية – مناقشه مهام التطوع والتفكير في الأولويات -","نعم"]
[null,4,"2024-09-08","متطلبات خارطة إدارة المعرفة- مناقشة المهام المطلوبة من الفريق التطوعي","نعم"]
[null,null,"2024-12-19","تشكيل اللجنة الاشرافية – توصيف الفريق ","نعم"]
[]
[]
["لجنة تنمية الموارد المالية ",1,"2024-03-19","التعريف باعضاء اللجنه – شرح برامج الجمعية المحتاجه الى دعم- عرض نسبة الحةكمه – عرض التقارير المالية الربعيه -","نعم"]
[null,2,"2024-03-25","مناقشه الفرص الوقفيه – دراسه عن مشروع الوقف للجمعية ","نعم"]
[null,3,"2024-07-11","دراسة الوثيقه الوقفيه – مناقشه اشراك الجمعية في المعارض التعريفيه بابراج مكه- مقترحات للاستفادة من ارض الجمعية – الاستفادة من خدماات بنك التنمية للجمعيات ","نعم"]
[null,4,"2024-07-15","متابعه ما استجد من اعمال بالاجتماع السابق من تواجد الجمعية في أبراج مكه كتعريف – متابعه العمل لارض مكه "]
[null,5,"2024-08-05","تحديث سياسات اللجنة – مناقشة فكرة جهاز التبرع الذاتي – مناقشة الفرص الاستثمارية بالبنوك المحلية "]
[]
[]
["لجنة التطوع ",1,"2024-02-03","استعراض جدول الأيام العالمية وتفعيلها ","نعم"]
[null,2,"2024-07-11","تفعيل عضوية الجميعة في مجلس الجمعيات – جدولة زيارة الافراد المانحين – تفعيل دورات غسل الأموال والإرهاب "]
[null,3,"2024-09-15","مناقشه وتنسيق حمله الطفل والمراه – وضع الموازنه التقديرية للحملات ","نعم"]
[null,4,"2024-12-13","ترتيبات تنفي1 ملتقى المراه ضمن حمله صوتك مسموع "]

{"sheet":"ورقة14","index":11,"n_rows":0,"n_cols":0,"rows_kept":0}

{"sheet":"(3-د) اجتماعات مجلس الإدارة","index":12,"n_rows":8,"n_cols":6,"rows_kept":8}
["Column1","Column2","Column3","Column4","Column5","Column6"]
["رقم الاجتماع","تاريخه","أهم القرارات إن وجدت","تم تنفيذها (نعم/لا)","سبب عدم التنفيذ","تم إرفاق المحضر\n(نعم/لا)"]
[1,"2024-01-21","اعتماد المحاسب القانوني مكتب رامي الخضر / تفعيل دورات غسل الأموال ","نعم",null,"نعم"]
[2,"2024-03-13","اعتماد عقد الجمعية العمومية 2024  واعتماد الميزانية 2023 والموازنه 2024 اعتماد انشاء وقف الام - اعتماد تحويل مبالغ الأوقاف الى حساب الوقف - ","نعم",null,"نعم"]
[3,"2024-06-02","اعتماد التقرير النصف سنوي 2024 اعتماد التقارير الربعية المالية - اعتماد المشاركة بمعرض ارينا ","نعم",null,"نعم"]
[4,"2024-09-29","اعتماد التقارير الربعيه اعتماد مشروع البلد الحرام اعتماد عقد التسويق مع المنحى اعتماد العقد اللالحاقي لمناقصه اسناد دور الايواء ","نعم",null,"نعم"]
[5,"2024-10-13","اعتماد بيانت النموذج الشامل 2023- اعتماد الخطه التشغيليه 2025/ اعتماد تقرير الانشطه - اعتماد الخطة الاستراتيجية ل خمس سنوات ","نعم",null,"نعم"]
[6,"2024-12-30","اعتماد ميزانية 2024 اعتماد الموافقه على البرامج والانشطه اعتماد الدفعه الثانيه من مشروع البلد الحرام ","نعم",null,"نعم"]

{"sheet":"ورقة15","index":13,"n_rows":0,"n_cols":0,"rows_kept":0}

{"sheet":"(3-هـ) استثناءات مجلس الإدارة","index":14,"n_rows":2,"n_cols":6,"rows_kept":2}
["Column1","Column2","Column3","Column4","Column5","Column6"]
["رقم الاجتماع","تاريخه","نوع الاستثناء\nحضور/نقاش/تصويت","موضوع القرار/الاجتماع الذي حصل فيه الاستثناء","اسم العضو","السبب"]

{"sheet":"(3-وـ)تفويض اختصاصات المجلس","index":15,"n_rows":2,"n_cols":4,"rows_kept":2}
["Column1","Column2","Column3","Column4"]
["الاختصاص ","المهام المفوضة فيه","الجهة المفوضة","سبب التفويض"]

{"sheet":"(3-ز) التحول في الأصول","index":16,"n_rows":3,"n_cols":5,"rows_kept":3}
["Column1","Column2","Column3","Column4","Column5"]
["نوع التحول\n(     ) صرف أموال أو استخدامها في غير ما خصصه المتبرع\n(     ) استخدام الأموال في تقديم قروض للموظفين\n(     ) صرف أموال أو استخدامها  في مجال غير مصرح\n(     ) اختلاس\n","تاريخ التحول","المبلغ المحول أو قيمته","سبب التحول","الاجراء المتخذ"]
["لايوجد "]

{"sheet":"ورقة12","index":17,"n_rows":0,"n_cols":0,"rows_kept":0,"hidden":true}

{"sheet":"ورقة13","index":18,"n_rows":0,"n_cols":0,"rows_kept":0,"hidden":true}

{"sheet":"(3-ح) التحول في الأصول","index":19,"n_rows":3,"n_cols":3,"rows_kept":3}
["Column1","Column2","Column3"]
["المبلغ المصروف نقدا","مجال الصرف","الجهة المستفيدة"]
[null,"لايوجد تحول في الأصول "]

{"sheet":"(3-ط) السجلات الإدارية","index":20,"n_rows":9,"n_cols":4,"rows_kept":9}
["السجل ","هل تستخدمه الجمعية (نعم/لا)","يتم التحديث بطريقة منتظمة (نعم/لا)","ملاحظات"]
["سجل العضوية","نعم","نعم"]
["سجل الاشتراكات","نعم","نعم"]
["سجل اجتماعات اللجان","نعم","نعم"]
["سجل اجتماعات مجلس الإدارة","نعم","نعم"]
["سجل اجتماعات الجمعية العمومية","نعم","نعم"]
["سجل النشاطات","نعم","نعم"]
["سجل المستفيدين","نعم","نعم"]
["سجلات أخرى","الاتفاقيات - المحاضر ","نعم"]

{"sheet":"(3-ي) السجلات المالية","index":21,"n_rows":11,"n_cols":4,"rows_kept":11}
["Column1","Column2","Column3","Column4"]
[null,"هل تستخدمه الجمعية (نعم/لا)","يتم التحديث بطريقة منتظمة (نعم/لا)","ملاحظات"]
["دفتر يومية عامة","نعم","نعم"]
["سجل الأصول الثابتة","نعم","نعم"]
["سجل التبرعات العينية","نعم","نعم"]
["سجل التبرعات النقديـة","نعم","نعم"]
["سجل المستودعات","نعم","نعم"]
["دفتر الأستاذ العام","نعم","نعم"]
["دفــتر الصندوق","نعم","نعم"]
["دفـتر حركــة البنك","نعم","نعم"]
["سـجــل العهدة","نعم","نعم"]

{"sheet":"(3-ك) المخولون بالسحب","index":22,"n_rows":5,"n_cols":2,"rows_kept":5}
["Column1","Column2"]
["الاسم","المنصب بمجلس الادارة"]
["سميرة خالد الغامدي","رئيس مجلس الادارة "]
["وجدان صالح الحبشي","عضو مجلس الإدارة "]
["هنادي مازن عبدالله السقاف ","المدير المالي"]

{"sheet":"(3-ل) العلاقات داخل الجمعية","index":23,"n_rows":2,"n_cols":6,"rows_kept":2}
["Column1","Column2","Column3","Column4","Column5","Column6"]
["اسم الموظف","منصبه","اسم الموظف ذي الصلة","منصبه","نوع العلاقة\n(تجارية/عائلية)","تفصيل العلاقة"]

{"sheet":"(3-م) العلاقات مع الداعمين","index":24,"n_rows":2,"n_cols":7,"rows_kept":2}
["Column1","Column2","Column3","Column4","Column5","Column6","Column7"]
["اسم عضو المجلس ","اسم الطرف الثاني ذي العلاقة","المسمى الوظيفي للطرف الثاني","اسم الجهة الداعمة التي يرتبط بها الطرف الثاني","تاريخ بداية الصفقة","تاريخ انتهاء الصفقة","قيمة الصفقة"]

{"sheet":"(3-ن) الجهات المتعاقد معها ","index":25,"n_rows":2,"n_cols":3,"rows_kept":2}
["Column1","Column2","Column3"]
["الجهة","وصف الخدمة","قيمة المبلغ"]

{"sheet":"(3-ص)  مبالغ أعضاء المجلس ","index":26,"n_rows":2,"n_cols":4,"rows_kept":2}
["Column1","Column2","Column3","Column4"]
["اسم العضو","قيمة المبالغ المتلقاة","سببها","التاريخ"]

{"sheet":"التبرعات والإيرادات (4-أ)","index":27,"n_rows":38,"n_cols":3,"rows_kept":38,"merged":[[1,1,1,3]]}
[]
[null,"التبرعات والايرادات والمنح "]
[]
[null,"البيان ","المبلغ "]
[null,"البيان ","المبلغ "]
[null,"التبرعات النقدية "]
[null,"تبرعات مقيدة",1669185]
[null,"تبرعات غير مقيدة",830112]
[null,"تبرعات مشاريع ",1081538]
[null,"التبرعات العينية ",1016073]
[]
[]
[]
[]
[]
[null,"إعانات ومنح حكومية "]
[null,"اعانات حكوميه  ارض",2901120]
[null,"منصات حكوميه احسان",344000]
[null,"إيرادات اسناد حكومي ",4247980]
[]
[]
[]
[null,"الزكاة ",7780]
[]
[]
[]
[null,"تبرعات وايرادات الأوقاف "]
[null,"تبرعات لبناء أوشراء أوقاف ",131123]
[null,"ايرادات وريع أوقاف "]
[null,"أخرى ( يتم تفصيلها )"]
[null,"مجموع تبرعات وإيرادات الأوقاف"]
[null,"ايرادات متنوعة"]
[null,"اشتراكات الأعضاء ",44896]
[null,"ايرادات الموارد البشريه",229272]
[null,"أرباح استثمارات",17341]
[null,"مجموع الإيرادات المتنوعة",12450]
[null,"تبرعات خدمات تطوعيه ",640700]
[null,null,13173570]

{"sheet":"المصروفات (٤-ب)","index":28,"n_rows":32,"n_cols":8,"rows_kept":32,"merged":[[1,1,2,1],[1,2,2,2],[1,3,1,7]]}
[]
[null,"البيان ","إجمالي المصروف ","توزيع المصروفات "]
[{"$nulls":3},"مصاريف الإدارة ","مصاريف مجلس الإدارة ( الحوكمة ) ","مصاريف جمع الأموال ","مصاريف التشغيل المحملة على البرامج والانشطة ","مصاريف البرامج والأنشطة "]
[null,"المصاريف التشغيلية "]
[null,"الرواتب والبدلات ",{"$f":"SUM(D5:H5)","v":743023},371277,null,null,371746]
[null,"التامينات الإجتماعيه ",{"$f":"SUM(D6:H6)","v":220706},96387,null,null,60496,63823]
[null,"منافع وخدمات",81667,45000,null,null,36667]
[null,"الصيانة والاصلاحات ",3697,2410,null,null,1287]
[null,"الكهرباء والمياة وهاتف",17408,9282,null,null,8126]
[null,"محروقات وسيارات",320,320,null,null,0]
[null,"نهاية الخدمه",147595,130562,null,null,17033]
[null,"استشارات قانونيه ",1500,1500,null,null,0]
[null,"ضيافة ونظافة ",383,383,null,null,0]
[null,"مصاريف جمع الأموال ",0,0,null,null,0]
[null,"اهلاكات ",47428,47428,null,null,0]
[null,"تامين صحي",16512,9837,null,null,6675]
[null,"ادوات مكتبيه ",1027,0,null,null,1027]
[null,"مصاريف بنكيه",10162,10162,null,null,0]
[null,"بدل انتداب",43831,0,null,null,43831]
[null,"أجور وتحميل",7554,{"$nulls":3},7554]
[null,"اشتراكات وتصديقات ",28346,19148,null,null,9198]
[null,"الاجمالي",{"$f":"SUM(C5:C21)","v":1371159}]
[null,"مصاريف الأنشطة "]
[null,"تدريب وتاهيل",7661]
[null,"مصاريف برامج موسميه ",799499]
[null,"برامج مساعدات الجمعية ",{"$f":"971882-44876","v":927006}]
[null,"مشروع دار الايواء",2924322]
[null,"مساعدات عينيه ",519646]
[null,"مساعدات خدمات تطوعيه",640700]
[null,"مساعدات زكاة",8200]
[null,"مساعدات احسان",344000]
[null,"إجمالي المصروفات ",{"$f":"SUM(C22:C31)","v":7542193}]

{"sheet":"(5-أ) توصيف البرامج","index":29,"n_rows":44,"n_cols":2,"rows_kept":44,"merged":[[2,1,11,1],[12,1,16,1],[17,1,19,1],[20,1,21,1],[22,1,23,1],[37,1,38,1],[40,1,41,1],[42,1,43,1]]}
["Column1","Column2"]
["وصف للبرامج والخدمات والنشاطات "]
["بناء العلاقات و مراحل التعافي","توعوي"]
["بناء العلاقات"]
["التصدى للمضايقات في الاماكن العامة"]
["التنمر"]
["التنمر"]
["بناء العلاقات"]
["بناء العلاقات"]
["خرافات نزول الوزن"]
["تقدير الذات"]
["تطفلي مابين القيادة و التردد"]
["تابع تطفلي مابين القيادة و التردد","تثقيفي"]
["الخطوات الذكية للحصول على وظيفة"]
["و ظائف الحوار الأسري الفعال"]
["العلاقات"]
["الإرشاد الأسري في استخدام التقنية"]
["بناء العلاقات","توعوي"]
["التنمر"]
["اليوم العالمي للأسرة"]
["اليوم العالمي للأسرة","تأهيلي"]
["اليوم العالمي للأسرة"]
["خطورة وسائل التواصل الاجتماعي في دعم غسل الاموال","توعوي تثقيفي"]
["اليوم العالمي للأسرة"]
["دور الايواء","تأهيلي"]
["لقاء أسرة أمنة لليوم العالمي للأسرة","توعوي"]
["برنامج سابلة","قيمي"]
["معرض اينا الدولي","توعوي"]
["البرنامج الصيفي","ترفيهي"]
["لقاء سيكلوجية مرتكبي جرائم التحرش الجنسي","تأهيلي"]
["الخروج من الصندوق","تثقيفي"]
["كوادر","تأهيلي"]
["برنامج حياه أمنة","تأهيلي"]
["التمكين الالكتروني","توعوي"]
["برنامج حياة مطمئنة","تأهيلي"]
["اليوم العالمي الإنساني","تثقيفي توعوي"]
["برنامج حياه مطمئنة","تأهيلي"]
["برنامج حقيبة صبايا","توعوي"]
["برنامج حقيبة صبايا"]
["ملتقى الصحة النفسية","تثقيفي توعوي"]
["ملتقى يوم الطفل","توعوي تثقيفي"]
["ملتقى يوم المرأه"]
["برنامج حقيبة طفل واعي","توعوي"]
["برنامج حقيبة طفل واعي"]

{"sheet":"(5-ب) بيانات البرامج","index":30,"n_rows":6,"n_cols":11,"rows_kept":6,"merged":[[0,0,2,0],[0,1,0,6],[0,7,2,7],[0,8,2,8],[0,9,2,9],[0,10,2,10],[1,1,1,3],[1,4,1,6]]}
["نوع البرنامج أو النشاط أو الخدمة","عدد المستفيدين",{"$nulls":5},"إجمالي عدد المستفيدين","الإيرادات","المصروفات","رمز النشاط"]
[null,"عدد المستفيدين السعوديون",null,null,"عدد المستفيدين غير سعوديين"]
[null,"معفى","برسوم مخفضة","برسوم","معفي","برسوم مخفضة","برسوم"]
["دعم حماية دعم المراة ",23766,null,null,1622]
["دعم الطفل ",600,null,null,36]
["تمكين وحرفة ",9,null,null,"-"]

{"sheet":"(5-ج) بيانات المساعدات","index":31,"n_rows":9,"n_cols":6,"rows_kept":9}
["نوع المساعدات","عدد المستفيدين",null,"إجمالي عدد المستفيدين","اجمالي مبلغ المساعدات"]
[null,"سعوديون","غير سعوديون"]
["مساعدات أيتام",60,2,62]
["مساعدات أرامل",11,0,11]
["مساعدات مطلقات",445,58,503]
["مساعدات ظروف خاصة",15,2,17]
["مساعدات عينية",8224,450,8674]
["أخرى",35783,8500,44283,null,"قانوني / جلسات اجتماعية ونفسية / كسوة / مالي / اثاث / أجهزة / "]
["المجموع",44538,9012,53550]